bitfinex-derivatives/quotes_ETHF0:USTF0_20250727
["timestamp","ask_amount","ask_price","bid_price","bid_amount"]
[1753643035527,3.45611,3846.4,3846.3,3.8195]
[1753643035728,4.26501,3846.4,3846.3,3.8195]
[1753643036039,5.10601,3846.4,3846.3,3.8195]
[1753643036537,5.10601,3846.4,3846.3,3.4304]
[1753643036930,3.7452,3846.4,3846.3,3.8195]
[1753643037737,1.23348,3846.7,3846.6,2.17418]
[1753643037935,3.04290178,3846.7,3846.6,3.33188]
[1753643038139,1.80942178,3846.7,3846.6,4.13438]
[1753643038333,0.67962178,3846.7,3846.6,4.13438]
[1753643038538,1.80942178,3846.7,3846.6,4.13438]
[1753643039042,0.67962178,3846.7,3846.6,4.13438]
[1753643040840,3.7622,3847.4,3847.3,3.6146]
[1753643041035,2.52941677,3847.6,3847.5,1.99426]
[1753643041236,2.52941677,3847.6,3847.5,4.13426]
[1753643041442,1.39961677,3847.6,3847.5,4.13426]
[1753643041737,5.13825677,3847.6,3847.5,4.13426]
[1753643041935,5.16181677,3847.6,3847.5,4.13426]
[1753643042243,5.68145677,3847.6,3847.5,4.13426]
[1753643042437,5.68145677,3847.6,3847.5,3.6146]
[1753643042943,5.68145677,3847.6,3847.5,3.2627]
[1753643043142,5.09684,3847.6,3847.5,3.2627]
[1753643046742,6.48038202,3847.6,3847.5,3.2627]
[1753643047243,5.09684,3847.6,3847.5,3.2627]
[1753643048235,4.28184,3847.6,3847.5,3.616]
[1753643048637,5.09684,3847.6,3847.5,3.616]
[1753643050749,4.28184,3847.6,3847.5,3.616]
[1753643051639,0.2,3847.9,3847.6,0.51964]
[1753643051945,4.4818,3847.9,3847.8,3.6183]
[1753643052245,5.2968,3847.9,3847.8,3.6183]
[1753643052746,5.97566796,3847.9,3847.8,3.265]
[1753643053044,5.97566796,3847.9,3847.8,2.6997]
[1753643053246,5.2968,3847.9,3847.8,2.6997]
[1753643059545,1.2334,3847.3,3847.2,1.6567]
[1753643059744,3.8635,3847.2,3847.1,0.8025]
[1753643059948,2.30864,3846.9,3846.8,2.6997]
[1753643060152,4.28194,3846.9,3846.8,3.265]
[1753643060346,4.28194,3846.9,3846.8,3.6183]
[1753643060743,5.09694,3846.9,3846.8,3.6183]
[1753643061451,5.09694,3846.9,3846.8,3.265]
[1753643063749,5.09694,3846.9,3846.8,2.6997]
[1753643064744,5.83083697,3846.9,3846.8,2.6997]
[1753643065854,5.83083697,3846.9,3846.8,3.053]
[1753643066749,5.83083697,3846.9,3846.8,2.6997]
[1753643067054,5.83083697,3846.9,3846.8,1.3342]
[1753643067556,5.83083697,3846.9,3846.8,2.14]
[1753643068048,4.14302,3846.3,3846.2,5.926]
[1753643068256,5.70881697,3846.3,3846.2,3.9754]
[1753643068656,5.18899697,3846.3,3845.9,0.8302]
[1753643068853,4.97496,3846.0,3845.9,0.5569]
[1753643069259,4.97496,3846.0,3845.9,1.3245]
[1753643069553,0.5199,3845.7,3845.6,3.2078]
[1753643069756,4.975,3845.7,3845.6,4.5323]
[1753643070356,4.975,3845.7,3845.6,5.926]
[1753643071253,4.975,3845.7,3845.6,2.7182]
[1753643072551,4.1431,3845.7,3845.6,3.5546]
[1753643073057,1.58677,3846.0,3845.9,1.6351]
[1753643073247,2.83827,3846.0,3845.9,3.5546]
[1753643073453,4.14307,3846.0,3845.9,3.5546]
[1753643073758,4.97497,3846.0,3845.9,3.5546]
[1753643074153,3.6232,3846.0,3845.9,4.07447]
[1753643074459,4.14306,3846.0,3845.9,3.5546]
[1753643075762,4.14306,3846.0,3845.9,4.07447]
[1753643075957,4.14306,3846.0,3845.9,3.5546]
[1753643076955,4.97496,3846.0,3845.9,3.5546]
[1753643077261,4.97496,3846.0,3845.9,3.2329]
[1753643077466,4.97496,3846.0,3845.9,2.7182]
[1753643078463,4.97496,3846.0,3845.9,3.2329]
[1753643078659,4.97496,3846.0,3845.9,3.5546]
[1753643078857,3.6232,3846.0,3845.9,4.07447]
[1753643079059,2.30196,3846.0,3845.9,4.07447]
[1753643079369,4.14306,3846.0,3845.9,3.5546]
[1753643079952,4.14306,3846.0,3845.9,4.07447]
[1753643080154,4.14306,3846.0,3845.9,3.5546]
[1753643081566,4.97496,3846.0,3845.9,3.2329]
[1753643081954,4.97496,3846.0,3845.9,1.888]
[1753643082159,2.3038,3845.7,3845.6,2.1547]
[1753643082365,4.975,3845.7,3845.6,2.1547]
[1753643082564,4.975,3845.7,3845.6,3.23811]
[1753643082866,4.975,3845.7,3845.6,2.7182]
[1753643083054,5.70889697,3845.7,3845.6,2.7182]
[1753643083460,5.70889697,3845.7,3845.6,3.23811]
[1753643083766,4.87102537,3845.7,3845.6,4.07451]
[1753643083973,4.87102537,3845.7,3845.6,3.5546]
[1753643084669,4.87102537,3845.7,3845.6,4.07451]
[1753643084866,4.87102537,3845.7,3845.6,3.5546]
[1753643085068,5.70292537,3845.7,3845.6,3.5546]
[1753643085270,5.70292537,3845.7,3845.6,4.07451]
[1753643085470,3.6232,3845.7,3845.6,4.07451]
[1753643086369,2.3184,3846.0,3845.9,0.51986]
[1753643086577,2.83827,3846.0,3845.9,3.5546]
[1753643086884,3.61067,3846.0,3845.9,3.5546]
[1753643087073,4.14307,3846.0,3845.9,3.5546]
[1753643087575,4.14307,3846.0,3845.9,4.07447]
[1753643087768,4.14307,3846.0,3845.9,3.5546]
[1753643088371,4.97497,3846.0,3845.9,2.7182]
[1753643088575,4.97497,3846.0,3845.9,1.3245]
[1753643090673,0.5199,3845.7,3845.6,1.90701]
[1753643090876,4.975,3845.7,3845.6,3.23811]
[1753643091375,4.975,3845.7,3845.6,4.07451]
[1753643091561,4.975,3845.7,3845.6,3.75281]
[1753643091765,4.975,3845.7,3845.6,3.2329]
[1753643092366,4.975,3845.7,3845.6,3.75281]
[1753643092573,4.975,3845.7,3845.6,3.2329]
[1753643092776,4.975,3845.7,3845.6,3.5546]
[1753643093374,4.1431,3845.7,3845.6,3.5546]
[1753643093672,5.70889697,3845.7,3845.6,2.7182]
[1753643094070,5.70889697,3845.7,3845.6,1.3245]
[1753643094870,5.70889697,3845.7,3845.1,2.1547]
[1753643094871,4.97507,3845.2,3845.1,2.1547]
[1753643095076,5.70896697,3845.2,3845.1,2.1547]
[1753643095672,5.18899697,3845.2,3845.1,2.1547]
[1753643095872,4.14317,3845.2,3845.1,4.07458]
[1753643096064,3.6232,3845.2,3845.1,4.07458]
[1753643096774,4.14317,3845.2,3845.1,4.07458]
[1753643096973,4.14317,3845.2,3845.1,3.5546]
[1753643099172,4.91227,3845.2,3845.1,3.2329]
[1753643099573,4.91227,3845.2,3845.1,2.7182]
[1753643100274,5.64616697,3845.2,3845.1,1.3245]
[1753643101076,1.78251,3844.9,3844.8,1.8822]
[1753643101376,4.99551,3844.9,3844.8,1.8822]
[1753643101684,4.99551,3844.9,3844.8,3.17942]
[1753643101887,1.0755,3844.9,3844.8,3.91472]
[1753643102074,4.22637,3845.2,3845.1,2.6175]
[1753643102376,4.22637,3845.2,3845.1,3.3947]
[1753643102570,3.7064,3845.2,3845.1,3.91468]
[1753643102880,0.51996,3845.3,3845.2,2.05907]
[1753643103074,3.2078,3845.5,3845.4,1.06044]
[1753643103274,0.68581758,3845.5,3845.4,3.91464]
[1753643103577,2.49891758,3845.5,3845.4,3.91464]
[1753643103973,1.0755,3845.5,3845.4,3.91464]
[1753643105273,2.85784,3846.2,3846.1,3.3947]
[1753643105476,5.6464392,3846.2,3846.1,3.3947]
[1753643105775,0.7376,3845.6,3845.5,2.6175]
[1753643106078,0.7376,3845.6,3843.8,0.19251532]
[1753643106079,4.99544,3845.4,3845.3,0.7956]
[1753643106271,4.99548,3845.1,3845.0,1.8822]
[1753643106576,6.41546876,3845.1,3845.0,0.5405]
[1753643107077,6.41546876,3845.1,3845.0,1.3177]
[1753643107776,0.68609179,3845.1,3845.0,3.9147]
[1753643107978,1.8131,3845.4,3845.3,1.5391]
[1753643108174,2.49951696,3845.4,3845.3,3.91466]
[1753643108472,3.01945696,3845.4,3845.3,3.3947]
[1753643108680,4.91275696,3845.4,3845.3,2.9422]
[1753643108881,5.68185696,3845.4,3845.3,2.6594]
[1753643109274,5.68185696,3845.4,3845.3,1.3177]
[1753643109982,5.68185696,3845.4,3845.3,2.6594]
[1753643111483,5.68185696,3845.4,3845.3,3.3547]
[1753643112183,4.91275696,3845.4,3845.3,3.3547]
[1753643113180,4.91275696,3845.4,3845.3,1.3177]
[1753643113181,5.68185696,3845.4,3845.3,1.3177]
[1753643113481,4.9955,3845.0,3844.9,2.3101]
[1753643113880,4.2264,3845.0,3844.9,3.3547]
[1753643115282,3.7064,3845.0,3844.9,3.87471]
[1753643115481,4.22634,3845.4,3845.3,3.3547]
[1753643115690,4.91360802,3845.4,3845.3,3.3547]
[1753643116282,5.68270802,3845.4,3845.3,3.0873]
[1753643116783,5.68270802,3845.4,3845.3,1.3177]
[1753643116980,5.68270802,3845.4,3845.3,0.7772]
[1753643117183,2.31748,3845.1,3845.0,1.8822]
[1753643117384,5.72937697,3845.1,3845.0,2.6594]
[1753643117580,5.72937697,3845.1,3845.0,1.3177]
[1753643117781,6.41694324,3845.1,3845.0,1.3177]
[1753643118081,6.41694324,3845.1,3845.0,2.6594]
[1753643119090,5.64784324,3845.1,3845.0,3.3547]
[1753643119286,0.51997,3845.2,3845.1,0.51998]
[1753643119481,1.20796015,3845.2,3845.1,7.08248]
[1753643120088,2.28346015,3845.2,3845.1,7.08248]
[1753643120581,3.54596015,3845.2,3845.1,3.87468]
[1753643120785,5.68346015,3845.2,3845.1,3.3547]
[1753643120986,5.68346015,3845.2,3845.1,2.6594]
[1753643121185,5.68346015,3845.2,3845.1,3.17938]
[1753643121582,5.68346015,3845.2,3845.1,2.6594]
[1753643121786,5.68346015,3845.2,3845.1,3.17938]
[1753643122087,4.39439015,3845.2,3845.1,3.87468]
[1753643122488,0.68799015,3845.2,3845.1,7.08248]
[1753643122680,0.51994,3845.5,3845.4,0.51994]
[1753643122888,0.6884498,3845.5,3845.4,3.87464]
[1753643124092,2.95454202,3846.4,3846.0,1.0866]
[1753643124394,5.08994202,3846.4,3846.3,1.60642]
[1753643124689,5.08994202,3846.4,3846.3,3.04152]
[1753643124985,5.60975202,3846.4,3846.3,3.04152]
[1753643125190,5.08994202,3846.4,3846.3,3.04152]
[1753643125390,5.60975202,3846.4,3846.3,3.04152]
[1753643126089,5.60975202,3846.4,3846.3,2.5217]
[1753643126290,4.99535,3846.1,3846.0,0.7772]
[1753643126487,5.72924697,3846.1,3846.0,0.7772]
[1753643126989,5.20939697,3846.1,3845.8,3.2078]
[1753643127289,2.3174,3845.7,3845.6,0.7772]
[1753643127490,5.20939697,3845.7,3845.6,1.83761]
[1753643127682,5.72929697,3845.7,3845.6,2.5217]
[1753643128290,5.72929697,3845.7,3845.6,3.04161]
[1753643128485,5.72929697,3845.7,3845.6,2.5217]
[1753643128687,5.72929697,3845.7,3845.6,3.04161]
[1753643128887,5.72929697,3845.7,3845.6,2.5217]
[1753643132087,4.96019697,3845.7,3845.6,2.5217]
[1753643132494,5.73159697,3845.7,3845.6,2.5217]
[1753643135890,5.73159697,3845.7,3845.6,1.9756]
[1753643136092,5.73159697,3845.7,3845.6,1.3177]
[1753643136596,4.85357,3845.3,3845.2,2.5225]
[1753643136983,4.08217,3845.3,3845.2,2.5225]
[1753643137185,0.8181,3845.6,3845.3,0.8213]
[1753643137493,4.03537,3845.9,3845.8,2.5225]
[1753643137695,4.71994925,3845.9,3845.8,2.5225]
[1753643137993,5.53804925,3845.9,3845.8,1.3342]
[1753643139790,3.80661,3845.6,3845.5,1.3342]
[1753643140092,5.58740697,3845.6,3845.5,1.3342]
[1753643141391,0.51999,3845.1,3845.0,1.0533]
[1753643141586,2.21719,3845.1,3845.0,3.0425]
[1753643141792,2.98859,3845.1,3845.0,1.3342]
[1753643142185,4.85359,3845.1,3845.0,1.3342]
[1753643142495,4.85359,3845.1,3845.0,1.9821]
[1753643142695,4.85359,3845.1,3845.0,1.3342]
[1753643142991,4.85359,3845.1,3845.0,0.8213]
[1753643143192,5.53838614,3845.1,3845.0,0.8213]
[1753643144597,5.53838614,3845.1,3845.0,1.3342]
[1753643144998,4.8536,3845.0,3844.9,3.2078]
[1753643145191,5.53839614,3845.0,3844.9,3.2078]
[1753643145391,5.53839614,3845.0,3844.9,4.0291]
[1753643145587,5.53839614,3845.0,3844.9,4.542]
[1753643150201,5.53839614,3845.0,3844.9,1.3342]
[1753643150395,5.53839614,3845.0,3844.9,1.9821]
[1753643151301,5.53839614,3845.0,3844.9,2.5225]
[1753643151801,4.76699614,3845.0,3844.9,3.04251]
[1753643151997,4.76699614,3845.0,3844.9,2.5225]
[1753643153001,5.53839614,3845.0,3844.9,2.5225]
[1753643153199,5.53839614,3845.0,3844.9,0.8213]
[1753643154301,5.53839614,3845.0,3844.9,1.3342]
[1753643155299,1.01548,3844.4,3844.3,1.9821]
[1753643155502,4.08228,3844.4,3844.3,2.5225]
[1753643155697,4.85368,3844.4,3844.3,2.5225]
[1753643156107,5.58757697,3844.4,3844.3,2.5225]
[1753643159199,5.58757697,3844.4,3844.3,1.3342]
[1753643159799,5.58757697,3844.4,3844.3,1.9538]
[1753643160505,5.58757697,3844.4,3844.3,1.3342]
[1753643160808,4.80359,3844.3,3844.2,3.7283]
[1753643161004,4.80359,3844.3,3844.2,0.5205]
[1753643161310,4.80359,3844.3,3844.2,1.276]
[1753643162006,25.61659,3844.3,3844.2,1.276]
[1753643163004,1.75983,3844.0,3843.9,1.8956]
[1753643163205,5.53752697,3844.0,3843.9,1.49240971]
[1753643164108,5.53752697,3844.0,3843.9,1.276]
[1753643164302,5.53752697,3844.0,3843.9,1.49240853]
[1753643165108,5.53752697,3844.0,3843.9,1.276]
[1753643165308,5.53752697,3844.0,3843.9,1.49242133]
[1753643165498,5.53752697,3844.0,3843.9,1.8956]
[1753643166404,0.52014,3843.9,3843.8,0.19251532]
[1753643166707,0.52023,3843.3,3843.2,1.06151375]
[1753643166902,5.01739697,3843.3,3843.2,2.65307565]
[1753643167298,5.53762697,3843.3,3843.2,2.65307565]
[1753643168804,5.01739697,3843.3,3843.2,2.65307565]
[1753643169007,5.01739697,3843.3,3843.2,3.17331565]
[1753643169210,4.24429697,3843.3,3843.2,3.17331565]
[1753643169412,4.76452697,3843.3,3843.2,2.65307565]
[1753643170012,5.01739697,3843.3,3843.2,2.65307565]
[1753643170311,5.53762697,3843.3,3843.2,2.65307565]
[1753643171009,5.01739697,3843.3,3843.2,2.65307565]
[1753643171205,2.9771,3843.3,3843.2,3.17331565]
[1753643171406,3.49733,3843.3,3843.2,2.65307565]
[1753643172010,4.03063,3843.3,3843.2,2.65307565]
[1753643173412,3.5104,3843.3,3843.2,3.17331565]
[1753643173613,4.03063,3843.3,3843.2,2.65307565]
[1753643173912,3.5104,3843.3,3843.2,3.17331565]
[1753643174713,4.03063,3843.3,3843.2,3.17331565]
[1753643174914,3.5104,3843.3,3843.2,3.17331565]
[1753643175114,6.18257,3843.7,3843.6,1.6629]
[1753643175414,26.25787,3843.7,3843.6,2.4184]
[1753643175609,26.78037,3843.7,3843.6,2.4184]
[1753643175815,27.51907,3843.7,3843.6,2.4184]
[1753643176210,26.9989,3843.7,3843.6,2.93859]
[1753643176419,1.0095,3843.7,3843.6,3.15539382]
[1753643177313,1.0095,3843.7,3843.6,6.36319382]
[1753643178108,21.8225,3843.9,3843.8,2.92286]
[1753643178308,21.8225,3843.9,3843.8,3.13966382]
[1753643178510,2.2384,3844.2,3844.1,2.4027]
[1753643178711,27.02544854,3844.2,3844.1,1.276]
[1753643178914,4.80364,3843.9,3843.8,1.276]
[1753643179205,4.80364,3843.9,3843.8,1.4928197]
[1753643179614,5.4785443,3843.9,3843.8,0.2168197]
[1753643180011,4.80369,3843.6,3843.5,4.4838]
[1753643180316,5.53758697,3843.6,3843.5,5.3045494]
[1753643180910,5.53758697,3843.6,3843.5,5.8273494]
[1753643181119,4.76448697,3843.6,3843.5,5.8273494]
[1753643181716,5.53758697,3843.6,3843.5,5.8273494]
[1753643182014,4.03059,3843.6,3843.5,5.8273494]
[1753643182317,22.5279,3843.6,3843.5,6.1307]
[1753643182514,2.4546,3843.9,3843.8,2.4027]
[1753643182717,23.20302498,3843.9,3843.8,2.92286]
[1753643183313,20.812,3843.9,3843.8,3.13968794]
[1753643183918,21.8215,3843.9,3843.8,3.13968794]
[1753643184221,23.57054,3843.9,3843.8,2.61952794]
[1753643184423,24.3224,3843.9,3843.8,3.13968794]
[1753643185514,23.7891,3843.9,3843.8,3.13968794]
[1753643185713,25.0955,3843.9,3843.8,2.61952794]
[1753643185909,24.84254,3843.9,3843.8,2.61952794]
[1753643186522,25.61564,3843.9,3843.8,2.61952794]
[1753643186918,25.61564,3843.9,3843.8,1.49282794]
[1753643187118,26.29131145,3843.9,3843.8,1.49280718]
[1753643188320,26.29164756,3843.9,3843.8,0.7555]
[1753643188622,26.29164756,3843.9,3843.8,1.2422]
[1753643188812,25.61564,3843.9,3843.8,1.8359]
[1753643189010,26.29165531,3843.9,3843.8,1.8359]
[1753643189215,26.29165531,3843.9,3843.8,2.05277206]
[1753643189825,26.29165531,3843.9,3843.8,1.45907206]
[1753643190123,26.29165531,3843.9,3843.8,1.2422]
[1753643190620,27.02555228,3843.9,3843.8,1.8359]
[1753643190820,27.02555228,3843.9,3843.8,1.2422]
[1753643191415,26.50541228,3843.9,3843.6,0.5937]
[1753643191721,4.79817,3843.7,3843.6,1.2058]
[1753643191931,4.79821,3843.4,3843.3,1.0804]
[1753643192119,26.34110697,3843.4,3843.3,0.4867]
[1753643192425,26.34110697,3843.4,3843.3,1.42275393]
[1753643192626,26.34110697,3843.4,3843.3,2.01645393]
[1753643193225,26.34110697,3843.4,3843.3,1.42275393]
[1753643193627,25.60721,3843.4,3843.3,2.01645393]
[1753643193828,26.34110697,3843.4,3843.3,2.51495393]
[1753643196026,26.34110697,3843.4,3843.3,1.42275393]
[1753643197529,26.34110697,3843.4,3843.3,1.2058]
[1753643199030,26.34110697,3843.4,3843.3,1.7995]
[1753643199632,27.01700357,3843.4,3843.3,1.7995]
[1753643200031,27.01700357,3843.4,3843.3,1.2058]
[1753643200936,27.01700357,3843.4,3843.3,1.7995]
[1753643202030,27.01700357,3843.4,3843.3,2.298]
[1753643203028,27.01700357,3843.4,3843.3,1.7995]
[1753643203434,27.01700357,3843.4,3843.3,1.2058]
[1753643205134,27.01700357,3843.4,3843.3,0.7191]
[1753643205530,4.79823,3843.3,3843.2,0.73731375]
[1753643205741,5.4741266,3843.3,3843.2,0.01821375]
[1753643206031,1.8248,3842.7,3842.4,0.52034]
[1753643206233,1.0274,3843.2,3842.6,1.30081]
[1753643206538,1.54764,3843.2,3843.1,1.2058]
[1753643206739,23.02865548,3843.2,3843.1,1.2058]
[1753643206948,24.35265548,3843.2,3843.1,1.2058]
[1753643207145,3.54465548,3843.2,3843.1,1.2058]
[1753643207342,22.52885548,3843.2,3843.1,1.2058]
[1753643207650,22.00109901,3843.2,3843.1,1.2058]
[1753643208845,1.19309901,3843.2,3843.1,1.2058]
[1753643209047,22.00109901,3843.2,3843.1,1.2058]
[1753643209247,25.53729901,3843.2,3843.1,1.2058]
[1753643209549,26.27909901,3843.2,3843.1,1.2058]
[1753643211448,24.20999901,3843.2,3843.1,1.2058]
[1753643211748,23.02849901,3843.2,3843.1,1.2058]
[1753643211938,26.27909901,3843.2,3843.1,1.2058]
[1753643212948,24.48715901,3843.2,3843.1,1.2058]
[1753643213143,1.0274,3843.2,3843.1,1.2058]
[1753643213351,20.808,3843.2,3843.1,1.72605]
[1753643213949,0.73389697,3843.6,3843.1,1.72605]
[1753643213950,0.7974,3843.9,3843.4,1.2058]
[1753643214253,1.0274,3843.9,3843.8,1.2058]
[1753643214446,23.02751412,3843.9,3843.8,1.2058]
[1753643214752,22.35454,3843.9,3843.8,1.72596]
[1753643214944,21.8344,3843.9,3843.8,1.2058]
[1753643215149,22.35454,3843.9,3843.8,1.72596]
[1753643215349,22.35454,3843.9,3843.8,1.2058]
[1753643215548,24.33344,3843.9,3843.8,1.2058]
[1753643215854,24.86334,3843.9,3843.8,1.2058]
[1753643216654,25.60514,3843.9,3843.8,1.2058]
[1753643216855,26.33903697,3843.9,3843.8,1.2058]
[1753643217049,25.60414,3843.9,3843.8,1.2058]
[1753643218160,25.084,3843.9,3843.8,1.72596]
[1753643218457,23.0149,3843.9,3843.8,1.72596]
[1753643218853,2.17799697,3844.2,3844.0,0.52013]
[1753643219057,22.44557512,3844.1,3844.0,1.75993]
[1753643219358,21.47767512,3844.1,3844.0,1.75993]
[1753643219550,25.34399512,3844.1,3844.0,1.2398]
[1753643219758,26.06979512,3844.1,3844.0,1.2398]
[1753643219954,26.06979512,3844.1,3844.0,1.75993]
[1753643220460,25.39712,3844.1,3844.0,1.75993]
[1753643220757,24.877,3844.1,3844.0,1.75993]
[1753643220958,24.1512,3844.1,3844.0,1.75993]
[1753643222053,24.67132,3844.1,3844.0,1.75993]
[1753643222252,25.39712,3844.1,3844.0,1.75993]
[1753643222452,24.877,3844.1,3844.0,1.2398]
[1753643222654,25.39712,3844.1,3844.0,0.5091]
[1753643222852,4.59214,3843.9,3843.8,0.5091]
[1753643223051,26.12903697,3843.9,3843.8,0.5091]
[1753643223556,2.1734,3843.7,3843.6,0.5091]
[1753643223756,4.5922,3843.5,3843.4,1.2398]
[1753643223956,26.12909697,3843.5,3843.4,0.216852]
[1753643224756,4.072,3843.3,3843.2,1.76004]
[1753643224957,25.39523,3843.3,3843.2,1.97688346]
[1753643225258,25.39523,3843.3,3843.2,1.2398]
[1753643227361,25.39523,3843.3,3843.2,1.76004]
[1753643229160,24.875,3843.3,3843.2,1.76004]
[1753643229361,25.39523,3843.3,3843.2,1.76004]
[1753643229557,25.39523,3843.3,3843.2,0.52024]
[1753643229861,25.39523,3843.3,3842.9,3.2078]
[1753643229862,4.59227,3843.0,3842.9,4.4476]
[1753643230054,26.12916697,3843.0,3842.9,3.9337674]
[1753643230258,26.12916697,3843.0,3842.9,0.2168674]
[1753643230458,26.79996426,3843.0,3842.9,0.2168674]
[1753643232565,0.52032,3842.6,3842.5,4.4476]
[1753643232766,24.42742,3842.6,3842.5,4.66450238]
[1753643233065,25.39532,3842.6,3842.5,1.45670238]
[1753643233461,26.12921697,3842.6,3842.5,1.45670238]
[1753643233963,26.12921697,3842.6,3842.5,1.2398]
[1753643237562,25.40341697,3842.6,3842.5,1.2398]
[1753643238367,26.12921697,3842.6,3842.5,1.2398]
[1753643245171,1.69317,3842.3,3842.2,0.5091]
[1753643245373,3.62447,3842.3,3842.2,1.2398]
[1753643245674,4.59237,3842.3,3842.2,1.2398]
[1753643246969,4.59237,3842.3,3842.2,1.76017]
[1753643247171,4.59237,3842.3,3842.2,1.2398]
[1753643248773,4.59237,3842.3,3842.2,1.76017]
[1753643248774,3.86656,3842.3,3842.2,1.76017]
[1753643252173,3.86656,3842.3,3842.2,4.96797]
[1753643253576,0.52036,3842.3,3842.2,4.96797]
[1753643254182,1.48056,3842.3,3842.2,4.96797]
[1753643256279,2.24346,3842.3,3842.2,1.76017]
[1753643256480,3.38316,3842.3,3842.2,4.96797]
[1753643257174,1.1397,3842.6,3842.5,1.70973]
[1753643257479,1.1397,3842.6,3842.2,3.72817]
[1753643257480,21.32131,3842.7,3842.6,1.70971]
[1753643257779,21.32131,3842.7,3842.6,4.91751]
[1753643257780,23.6638,3842.7,3842.6,4.91751]
[1753643258082,24.18411,3842.7,3842.6,4.91751]
[1753643258475,23.6638,3842.7,3842.6,4.91751]
[1753643258978,24.18411,3842.7,3842.6,4.91751]
[1753643259282,24.86348655,3842.7,3842.6,4.91751]
[1753643259483,26.08638655,3842.7,3842.6,1.70972]
[1753643259678,26.08638655,3842.7,3842.6,1.1894]
[1753643260776,26.08638655,3842.7,3842.6,1.70972]
[1753643260979,26.08638655,3842.7,3842.6,1.1894]
[1753643261276,4.60602,3842.6,3842.5,4.91753]
[1753643261486,5.28539655,3842.6,3842.5,4.91753]
[1753643262178,5.28539655,3842.6,3842.5,4.3972]
[1753643262778,5.28539655,3842.6,3842.5,3.2078]
[1753643264679,2.15188,3842.2,3842.1,3.6741]
[1753643264885,4.0857,3842.2,3842.1,4.91759]
[1753643265786,4.60608,3842.2,3842.1,1.1894]
[1753643266084,4.6061,3842.0,3841.9,1.70981]
[1753643267285,4.6061,3842.0,3841.9,1.1894]
[1753643267676,4.6061,3842.0,3841.9,1.70982]
[1753643267876,2.8628,3842.0,3841.9,1.70982]
[1753643268289,3.3832,3842.0,3841.9,1.70982]
[1753643269378,2.8628,3842.0,3841.9,1.70982]
[1753643269683,3.3832,3842.0,3841.9,1.70982]
[1753643270081,3.875,3842.0,3841.9,1.70982]
[1753643270282,4.6061,3842.0,3841.9,1.70982]
[1753643271292,4.0857,3842.0,3841.9,1.70982]
[1753643271690,3.5939,3842.3,3842.2,0.98668]
[1753643271891,3.38317,3842.3,3842.2,1.70978]
[1753643272089,4.0857,3842.3,3842.2,1.70978]
[1753643272392,4.11423,3842.6,3842.5,0.98663]
[1753643272592,5.28242539,3842.6,3842.5,1.70973]
[1753643273192,5.28242539,3842.6,3842.5,1.1894]
[1753643273394,4.60608,3842.3,3842.2,1.1894]
[1753643273992,4.60608,3842.3,3842.2,1.70977]
[1753643274293,4.0857,3842.3,3842.2,1.70977]
[1753643274592,3.3546,3842.3,3842.2,1.70977]
[1753643275089,0.9602,3842.3,3842.2,1.70977]
[1753643275391,0.9602,3842.5,3842.4,1.70975]
[1753643277991,0.73389697,3843.1,3842.4,1.1894]
[1753643278185,0.7177,3843.4,3843.3,0.52023]
[1753643278389,2.99573836,3843.4,3843.3,1.71113]
[1753643278791,3.74533836,3843.4,3843.3,1.71113]
[1753643278993,4.69123836,3843.4,3843.3,1.71113]
[1753643279390,4.9267342,3843.4,3843.3,1.71113]
[1753643279587,5.4469442,3843.4,3843.3,1.71113]
[1753643279791,5.4469442,3843.4,3843.3,0.52023]
[1753643279994,1.2108,3843.1,3843.0,4.3987]
[1753643280192,5.94540533,3843.1,3843.0,0.52025]
[1753643280498,5.42513533,3843.1,3843.0,4.91895]
[1753643280892,5.94538533,3843.1,3843.0,4.91895]
[1753643281191,5.42513533,3843.1,3843.0,4.91895]
[1753643281593,5.94538533,3843.1,3843.0,4.91895]
[1753643283092,5.94538533,3843.1,3843.0,1.71117]
[1753643284197,5.94538533,3843.1,3843.0,1.1909]
[1753643284399,5.94538533,3843.1,3843.0,1.71117]
[1753643284594,2.12207,3843.0,3842.9,1.71117]
[1753643284795,2.79830836,3843.0,3842.9,1.71117]
[1753643284996,5.21150836,3843.0,3842.9,1.71117]
[1753643285999,4.69123836,3843.0,3842.9,1.71117]
[1753643286598,0.9459,3843.0,3842.9,1.71117]
[1753643287098,1.8285,3843.3,3843.2,1.71114]
[1753643287295,2.50394034,3843.3,3843.2,1.71114]
[1753643287491,3.44984034,3843.3,3843.2,1.71114]
[1753643288603,5.21067034,3843.3,3843.2,1.71114]
[1753643288797,4.53523,3843.3,3843.2,1.71114]
[1753643289801,4.015,3843.3,3843.2,1.71114]
[1753643290005,3.2654,3843.3,3843.2,1.71114]
[1753643290198,1.1108,3843.6,3843.3,0.4928]
[1753643290403,1.6636,3843.5,3843.4,1.71111]
[1753643290605,2.7744,3843.5,3843.4,1.71111]
[1753643291000,3.2654,3843.5,3843.4,1.71111]
[1753643292002,4.015,3843.5,3843.4,1.71111]
[1753643292194,4.015,3843.9,3843.8,1.71106]
[1753643292393,3.94023528,3843.9,3843.8,1.71106]
[1753643293794,4.015,3843.9,3843.8,1.71106]
[1753643294806,4.53514,3843.9,3843.8,1.71106]
[1753643295301,4.015,3843.9,3843.8,1.71106]
[1753643295701,3.2654,3843.9,3843.8,1.71106]
[1753643297206,4.015,3843.9,3843.8,1.71106]
[1753643298505,3.524,3844.2,3844.1,1.71102]
[1753643298807,0.9459,3844.8,3844.7,1.01284]
[1753643299009,1.62193321,3844.8,3844.7,1.71094]
[1753643299203,0.67603321,3844.8,3844.7,1.71094]
[1753643299402,0.9459,3845.1,3845.0,1.7109]
[1753643299610,1.62179767,3845.1,3845.0,4.9187]
[1753643299910,0.67589767,3845.1,3845.0,4.9187]
[1753643300105,0.9459,3845.6,3845.5,0.51993]